[Event "Early-Titled-Tuesday-Blitz-June-18-2024"]
[Site "Chess.com"]
[Date "2024.06.18"]
[Round "8"]
[White "the_chess_child"]
[Black "chessbaerchen"]
[Result "1-0"]
[WhiteElo "2868"]
[BlackElo "2690"]
[TimeControl "180+1"]
[EndTime "9:30:40 PDT"]
[Termination "the_chess_child won by checkmate"]

1. e4 {[%clk 0:03:00.9]} 1... e6 {[%clk 0:03:00.3]} 2. d3 {[%clk 0:03:00.1]}
2... d5 {[%clk 0:03:00.1]} 3. Nd2 {[%clk 0:03:00.9]} 3... Nc6 {[%clk 0:02:59]}
4. Ngf3 {[%clk 0:03:00.7]} 4... e5 {[%clk 0:02:56.1]} 5. g3 {[%clk 0:02:55.6]}
5... dxe4 {[%clk 0:02:55]} 6. Nxe4 {[%clk 0:02:52.9]} 6... Nf6 {[%clk
0:02:55.3]} 7. Nxf6+ {[%clk 0:02:52.2]} 7... Qxf6 {[%clk 0:02:56.2]} 8. Bg2
{[%clk 0:02:51.5]} 8... Bc5 {[%clk 0:02:56.1]} 9. Bg5 {[%clk 0:02:50.5]} 9...
Qg6 {[%clk 0:02:55.2]} 10. O-O {[%clk 0:02:50.6]} 10... O-O {[%clk 0:02:54.4]}
11. Qd2 {[%clk 0:02:50.9]} 11... h6 {[%clk 0:02:50.1]} 12. Be3 {[%clk
0:02:50.7]} 12... Bd6 {[%clk 0:02:50.1]} 13. d4 {[%clk 0:02:42.4]} 13... exd4
{[%clk 0:02:31.1]} 14. Nxd4 {[%clk 0:02:43.3]} 14... Nxd4 {[%clk 0:02:31.3]} 15.
Bxd4 {[%clk 0:02:41.2]} 15... c6 {[%clk 0:02:30.6]} 16. Rad1 {[%clk 0:02:39.8]}
16... Bc7 {[%clk 0:02:24]} 17. Rfe1 {[%clk 0:02:29.1]} 17... Bf5 {[%clk
0:02:23.4]} 18. c3 {[%clk 0:02:26.2]} 18... a5 {[%clk 0:02:10.6]} 19. Re7 {[%clk
0:01:14.5]} 19... Rac8 {[%clk 0:02:06.9]} 20. Rde1 {[%clk 0:01:07.2]} 20... b6
{[%clk 0:02:00.5]} 21. h4 {[%clk 0:00:39.6]} 21... c5 {[%clk 0:01:52.5]} 22. Be5
{[%clk 0:00:39.7]} 22... Bxe5 {[%clk 0:01:46.9]} 23. R1xe5 {[%clk 0:00:40.6]}
23... Be6 {[%clk 0:01:45.7]} 24. Qf4 {[%clk 0:00:20.2]} 24... Qb1+ {[%clk
0:01:39.4]} 25. Kh2 {[%clk 0:00:19.9]} 25... Rce8 {[%clk 0:01:29.1]} 26. Rb7
{[%clk 0:00:11.4]} 26... Qxb2 {[%clk 0:01:25.5]} 27. Rxc5 {[%clk 0:00:11.7]}
27... Bxa2 {[%clk 0:01:17.4]} 28. Rcc7 {[%clk 0:00:10.5]} 28... Re2 {[%clk
0:01:11.1]} 29. Kg1 {[%clk 0:00:10.5]} 29... Be6 {[%clk 0:01:00.6]} 30. Qd4
{[%clk 0:00:10.1]} 30... b5 {[%clk 0:00:53.2]} 31. Bf3 {[%clk 0:00:09.6]} 31...
Re1+ {[%clk 0:00:52.5]} 32. Kg2 {[%clk 0:00:10.1]} 32... Qb1 {[%clk 0:00:47.9]}
33. Re7 {[%clk 0:00:10]} 33... Rh1 {[%clk 0:00:43.5]} 34. Be2 {[%clk 0:00:06.9]}
34... Rh3 {[%clk 0:00:22.7]} 35. Bf1 {[%clk 0:00:05.7]} 35... Qf5 {[%clk
0:00:19.1]} 36. Rxb5 {[%clk 0:00:03.3]} 36... Qxb5 {[%clk 0:00:18.1]} 37. Bxb5
{[%clk 0:00:02.8]} 37... Rb8 {[%clk 0:00:14.8]} 38. Rxe6 {[%clk 0:00:03.2]}
38... Rxb5 {[%clk 0:00:14.6]} 39. Re8+ {[%clk 0:00:03.2]} 39... Kh7 {[%clk
0:00:14.7]} 40. Qd3+ {[%clk 0:00:04.1]} 40... g6 {[%clk 0:00:13.9]} 41. Qxb5
{[%clk 0:00:04.4]} 41... Rxh4 {[%clk 0:00:12.2]} 42. gxh4 {[%clk 0:00:04.4]}
42... Kg7 {[%clk 0:00:12.7]} 43. Qe5+ {[%clk 0:00:04]} 43... f6 {[%clk
0:00:12.4]} 44. Qe7# {[%clk 0:00:04.2]} 1-0

[Event "Early-Titled-Tuesday-Blitz-June-18-2024"]
[Site "Chess.com"]
[Date "2024.06.18"]
[Round "8"]
[White "GM_dmitrij"]
[Black "klimkoj"]
[Result "1-0"]
[WhiteElo "3042"]
[BlackElo "2899"]
[TimeControl "180+1"]
[EndTime "9:30:41 PDT"]
[Termination "GM_dmitrij won on time"]

1. e4 {[%clk 0:03:00.9]} 1... c5 {[%clk 0:02:59.6]} 2. Nf3 {[%clk 0:02:59.1]}
2... d6 {[%clk 0:02:55.5]} 3. Nc3 {[%clk 0:02:58.3]} 3... Nf6 {[%clk 0:02:55.8]}
4. d4 {[%clk 0:02:55.3]} 4... cxd4 {[%clk 0:02:56.2]} 5. Nxd4 {[%clk 0:02:56.2]}
5... a6 {[%clk 0:02:55.9]} 6. f4 {[%clk 0:02:54]} 6... e5 {[%clk 0:02:55]} 7.
Nb3 {[%clk 0:02:54]} 7... Be7 {[%clk 0:02:50.4]} 8. fxe5 {[%clk 0:02:53.4]} 8...
dxe5 {[%clk 0:02:50]} 9. Qxd8+ {[%clk 0:02:54.3]} 9... Bxd8 {[%clk 0:02:47.9]}
10. Be3 {[%clk 0:02:54.8]} 10... b6 {[%clk 0:02:35.4]} 11. Be2 {[%clk
0:02:52.7]} 11... Bb7 {[%clk 0:02:35.7]} 12. Bf3 {[%clk 0:02:53.2]} 12... Nbd7
{[%clk 0:02:35.9]} 13. g4 {[%clk 0:02:42]} 13... h6 {[%clk 0:02:28.9]} 14. Ke2
{[%clk 0:02:30.3]} 14... Nf8 {[%clk 0:02:21.6]} 15. h4 {[%clk 0:02:27]} 15...
Ne6 {[%clk 0:02:21.7]} 16. g5 {[%clk 0:02:21.4]} 16... Nd7 {[%clk 0:02:16.1]}
17. gxh6 {[%clk 0:02:19]} 17... gxh6 {[%clk 0:02:17]} 18. Nd5 {[%clk 0:02:17.9]}
18... Rc8 {[%clk 0:02:13.8]} 19. c3 {[%clk 0:02:15.5]} 19... h5 {[%clk
0:01:40.5]} 20. Nd2 {[%clk 0:01:48.2]} 20... a5 {[%clk 0:01:23.6]} 21. b4 {[%clk
0:01:21.9]} 21... Ba6+ {[%clk 0:01:22.3]} 22. Kf2 {[%clk 0:01:20.9]} 22... a4
{[%clk 0:01:00.8]} 23. Be2 {[%clk 0:01:16.4]} 23... Bxe2 {[%clk 0:00:56.3]} 24.
Kxe2 {[%clk 0:01:17.3]} 24... Nf6 {[%clk 0:00:54.9]} 25. c4 {[%clk 0:01:08.9]}
25... Ng4 {[%clk 0:00:33.1]} 26. Rac1 {[%clk 0:00:57.9]} 26... Nxe3 {[%clk
0:00:29]} 27. Kxe3 {[%clk 0:00:58.8]} 27... Rg8 {[%clk 0:00:29.2]} 28. Nf3
{[%clk 0:00:54.7]} 28... f6 {[%clk 0:00:19.1]} 29. Kd3 {[%clk 0:00:39.6]} 29...
Rg3 {[%clk 0:00:17.8]} 30. Rhf1 {[%clk 0:00:29.8]} 30... Nd4 {[%clk 0:00:16.7]}
31. Ke3 {[%clk 0:00:29.1]} 31... Rh3 {[%clk 0:00:14.8]} 32. a3 {[%clk
0:00:20.6]} 32... Kd7 {[%clk 0:00:07.9]} 33. Rc3 {[%clk 0:00:20.5]} 33... Ke6
{[%clk 0:00:07.2]} 34. Rf2 {[%clk 0:00:16.8]} 34... f5 {[%clk 0:00:01.2]} 35.
exf5+ {[%clk 0:00:17.7]} 35... Kxf5 {[%clk 0:00:01.8]} 36. Kd2 {[%clk
0:00:17.9]} 36... Nxf3+ {[%clk 0:00:01.7]} 37. Rcxf3+ {[%clk 0:00:18.8]} 37...
Rxf3 {[%clk 0:00:01.8]} 38. Rxf3+ {[%clk 0:00:19.7]} 38... Kg4 {[%clk
0:00:01.8]} 39. Rf8 {[%clk 0:00:20]} 39... Bg5+ {[%clk 0:00:02.1]} 40. hxg5
{[%clk 0:00:20.7]} 40... Rxf8 {[%clk 0:00:03]} 41. g6 {[%clk 0:00:21.1]} 41...
Kg5 {[%clk 0:00:02.6]} 42. g7 {[%clk 0:00:14.4]} 1-0

[Event "Early-Titled-Tuesday-Blitz-June-18-2024"]
[Site "Chess.com"]
[Date "2024.06.18"]
[Round "8"]
[White "artin10862"]
[Black "Evan_Attaker"]
[Result "1-0"]
[WhiteElo "2947"]
[BlackElo "2731"]
[TimeControl "180+1"]
[EndTime "9:30:42 PDT"]
[Termination "artin10862 won on time"]

1. a4 {[%clk 0:03:00.9]} 1... g6 {[%clk 0:02:57.2]} 2. a5 {[%clk 0:02:59.1]}
2... Bg7 {[%clk 0:02:56.5]} 3. d4 {[%clk 0:02:58.5]} 3... Nf6 {[%clk 0:02:51.5]}
4. Nf3 {[%clk 0:02:53.2]} 4... O-O {[%clk 0:02:50.4]} 5. Bf4 {[%clk 0:02:52.8]}
5... c5 {[%clk 0:02:45.9]} 6. dxc5 {[%clk 0:02:31.5]} 6... Ne4 {[%clk
0:02:40.8]} 7. c3 {[%clk 0:02:25.7]} 7... Nxc5 {[%clk 0:02:40.1]} 8. Be3 {[%clk
0:02:06.2]} 8... Ne4 {[%clk 0:02:30.3]} 9. Bd4 {[%clk 0:02:05.9]} 9... Nc6
{[%clk 0:02:28.2]} 10. Bxg7 {[%clk 0:02:05.4]} 10... Kxg7 {[%clk 0:02:29.1]} 11.
e3 {[%clk 0:02:03.7]} 11... Nxa5 {[%clk 0:02:23.8]} 12. Qa4 {[%clk 0:01:51]}
12... Qb6 {[%clk 0:02:02.2]} 13. Qxe4 {[%clk 0:01:33.8]} 13... Qxb2 {[%clk
0:01:58.6]} 14. Rxa5 {[%clk 0:01:32.6]} 14... b6 {[%clk 0:01:35.6]} 15. Qd4+
{[%clk 0:01:25.8]} 15... e5 {[%clk 0:01:32.8]} 16. Rxe5 {[%clk 0:01:18.8]} 16...
Qxb1+ {[%clk 0:01:32.7]} 17. Qd1 {[%clk 0:01:18.7]} 17... Qb2 {[%clk 0:01:26.7]}
18. Rd5 {[%clk 0:01:06.3]} 18... Qxc3+ {[%clk 0:01:22.2]} 19. Rd2 {[%clk
0:01:06.2]} 19... a5 {[%clk 0:01:11.3]} 20. Bb5 {[%clk 0:01:00.5]} 20... Bb7
{[%clk 0:01:06.9]} 21. O-O {[%clk 0:00:57.1]} 21... Bxf3 {[%clk 0:01:02.1]} 22.
gxf3 {[%clk 0:00:58]} 22... Qe5 {[%clk 0:00:54.3]} 23. Rd5 {[%clk 0:00:57.1]}
23... Qe6 {[%clk 0:00:43.4]} 24. Qd4+ {[%clk 0:00:55.4]} 24... Kg8 {[%clk
0:00:42.6]} 25. Bxd7 {[%clk 0:00:55.4]} 25... Qe7 {[%clk 0:00:42.2]} 26. Rd1
{[%clk 0:00:52.6]} 26... Rfd8 {[%clk 0:00:36.2]} 27. Bb5 {[%clk 0:00:47.7]}
27... Rxd5 {[%clk 0:00:29.1]} 28. Qxd5 {[%clk 0:00:48.6]} 28... Rc8 {[%clk
0:00:28.4]} 29. f4 {[%clk 0:00:48.7]} 29... Qb4 {[%clk 0:00:21.1]} 30. Qd7
{[%clk 0:00:39.4]} 30... Rc5 {[%clk 0:00:16.8]} 31. Bf1 {[%clk 0:00:32.9]} 31...
a4 {[%clk 0:00:14]} 32. Rd4 {[%clk 0:00:32.6]} 32... Qb1 {[%clk 0:00:09.5]} 33.
Qxa4 {[%clk 0:00:31.1]} 33... Rc1 {[%clk 0:00:09.5]} 34. Rd8+ {[%clk 0:00:31.4]}
34... Kg7 {[%clk 0:00:09.2]} 35. Qd4+ {[%clk 0:00:32.1]} 35... Kh6 {[%clk
0:00:09.7]} 36. Qd3 {[%clk 0:00:32.7]} 36... Qa1 {[%clk 0:00:08.3]} 37. Kg2
{[%clk 0:00:29.6]} 37... Qf6 {[%clk 0:00:08.1]} 38. Rd5 {[%clk 0:00:23.7]} 38...
Qh4 {[%clk 0:00:07.5]} 39. Be2 {[%clk 0:00:24.1]} 39... Rc7 {[%clk 0:00:02]} 40.
Qd4 {[%clk 0:00:22.9]} 40... Rc1 {[%clk 0:00:01.4]} 41. Qe4 {[%clk 0:00:15.7]}
1-0

[Event "Early-Titled-Tuesday-Blitz-June-18-2024"]
[Site "Chess.com"]
[Date "2024.06.18"]
[Round "8"]
[White "suyu28"]
[Black "rasmussvane"]
[Result "0-1"]
[WhiteElo "2767"]
[BlackElo "2968"]
[TimeControl "180+1"]
[EndTime "9:30:42 PDT"]
[Termination "rasmussvane won on time"]

1. d4 {[%clk 0:02:59.7]} 1... d5 {[%clk 0:02:59.4]} 2. c4 {[%clk 0:03:00]} 2...
e6 {[%clk 0:02:55]} 3. Nf3 {[%clk 0:02:59.4]} 3... a6 {[%clk 0:02:54.9]} 4. cxd5
{[%clk 0:02:50.3]} 4... exd5 {[%clk 0:02:55.8]} 5. Nc3 {[%clk 0:02:50.2]} 5...
Nf6 {[%clk 0:02:54.8]} 6. Bg5 {[%clk 0:02:46.9]} 6... Be6 {[%clk 0:02:54.9]} 7.
e3 {[%clk 0:02:47]} 7... Nbd7 {[%clk 0:02:53.3]} 8. Bd3 {[%clk 0:02:47.6]} 8...
Bd6 {[%clk 0:02:52.9]} 9. O-O {[%clk 0:02:48.2]} 9... c6 {[%clk 0:02:52.1]} 10.
Bf4 {[%clk 0:02:47.3]} 10... Qc7 {[%clk 0:02:51.7]} 11. Bxd6 {[%clk 0:02:46.7]}
11... Qxd6 {[%clk 0:02:52.6]} 12. Qc2 {[%clk 0:02:45.9]} 12... Bg4 {[%clk
0:02:49.6]} 13. Nd2 {[%clk 0:02:42.6]} 13... c5 {[%clk 0:01:44.6]} 14. dxc5
{[%clk 0:02:19.8]} 14... Nxc5 {[%clk 0:01:40.9]} 15. Nb3 {[%clk 0:02:17.5]}
15... Nxb3 {[%clk 0:01:24.8]} 16. Qxb3 {[%clk 0:02:06.4]} 16... O-O {[%clk
0:01:24.9]} 17. Ne2 {[%clk 0:02:01.7]} 17... Bxe2 {[%clk 0:01:21.2]} 18. Bxe2
{[%clk 0:02:00.9]} 18... Rfc8 {[%clk 0:01:17.3]} 19. Rac1 {[%clk 0:01:46.5]}
19... b5 {[%clk 0:01:05.9]} 20. Rfd1 {[%clk 0:01:42.3]} 20... h6 {[%clk
0:00:59.2]} 21. Bf3 {[%clk 0:01:29.4]} 21... Rxc1 {[%clk 0:00:58.8]} 22. Rxc1
{[%clk 0:01:29.4]} 22... Rd8 {[%clk 0:00:59.5]} 23. Qc3 {[%clk 0:01:27.2]} 23...
d4 {[%clk 0:00:55.5]} 24. exd4 {[%clk 0:01:19.2]} 24... Qxd4 {[%clk 0:00:56.4]}
25. Qc2 {[%clk 0:01:16.2]} 25... Qd2 {[%clk 0:00:47.6]} 26. g3 {[%clk
0:01:09.9]} 26... g6 {[%clk 0:00:42.4]} 27. Kg2 {[%clk 0:01:05.2]} 27... Kg7
{[%clk 0:00:42.7]} 28. h4 {[%clk 0:01:03.3]} 28... h5 {[%clk 0:00:42.5]} 29. Kg1
{[%clk 0:00:52.3]} 29... a5 {[%clk 0:00:40.6]} 30. Kg2 {[%clk 0:00:50.6]} 30...
Rd4 {[%clk 0:00:33.2]} 31. Qc3 {[%clk 0:00:42.8]} 31... b4 {[%clk 0:00:26.5]}
32. Qc2 {[%clk 0:00:32.6]} 32... Nd7 {[%clk 0:00:21.8]} 33. a3 {[%clk
0:00:26.3]} 33... Ne5 {[%clk 0:00:19.9]} 34. axb4 {[%clk 0:00:25]} 34... axb4
{[%clk 0:00:19]} 35. Bb7 {[%clk 0:00:05.2]} 35... b3 {[%clk 0:00:17.2]} 36. Qc3
{[%clk 0:00:04.8]} 36... Ng4 {[%clk 0:00:10.3]} 37. Rf1 {[%clk 0:00:03]} 37...
Qxc3 {[%clk 0:00:08.5]} 38. bxc3 {[%clk 0:00:03.1]} 38... Rd2 {[%clk 0:00:09.2]}
39. Kg1 {[%clk 0:00:02.4]} 39... b2 {[%clk 0:00:05.8]} 40. Be4 {[%clk 0:00:02]}
40... Re2 {[%clk 0:00:05.4]} 0-1

[Event "Early-Titled-Tuesday-Blitz-June-18-2024"]
[Site "Chess.com"]
[Date "2024.06.18"]
[Round "8"]
[White "AndrewMaco"]
[Black "AlexeiShirov"]
[Result "0-1"]
[WhiteElo "2698"]
[BlackElo "2876"]
[TimeControl "180+1"]
[EndTime "9:30:45 PDT"]
[Termination "AlexeiShirov won on time"]

1. e4 {[%clk 0:03:00.9]} 1... e5 {[%clk 0:02:53.8]} 2. Nf3 {[%clk 0:02:59.7]}
2... Nc6 {[%clk 0:02:53.5]} 3. Bb5 {[%clk 0:02:59.7]} 3... f5 {[%clk 0:02:52.6]}
4. d3 {[%clk 0:02:58.7]} 4... fxe4 {[%clk 0:02:52.1]} 5. dxe4 {[%clk 0:02:59.6]}
5... Nf6 {[%clk 0:02:52.1]} 6. O-O {[%clk 0:02:58.6]} 6... Bc5 {[%clk
0:02:51.6]} 7. Bxc6 {[%clk 0:02:54.5]} 7... bxc6 {[%clk 0:02:50.1]} 8. Nxe5
{[%clk 0:02:54.5]} 8... O-O {[%clk 0:02:49.2]} 9. Nc3 {[%clk 0:02:53.6]} 9...
Qe8 {[%clk 0:02:48.7]} 10. Nd3 {[%clk 0:02:51.4]} 10... Bd4 {[%clk 0:02:48.3]}
11. e5 {[%clk 0:02:38.8]} 11... Nd5 {[%clk 0:02:16]} 12. Nxd5 {[%clk 0:02:04.3]}
12... cxd5 {[%clk 0:02:14.7]} 13. Be3 {[%clk 0:02:03.9]} 13... Bxe5 {[%clk
0:02:09.5]} 14. Nxe5 {[%clk 0:01:55.2]} 14... Qxe5 {[%clk 0:02:08.5]} 15. Qd2
{[%clk 0:01:44.3]} 15... Bb7 {[%clk 0:02:03.4]} 16. Bd4 {[%clk 0:01:41.8]} 16...
Qh5 {[%clk 0:02:00.6]} 17. Rfe1 {[%clk 0:01:37.2]} 17... d6 {[%clk 0:01:52.4]}
18. b4 {[%clk 0:01:17.8]} 18... Ba6 {[%clk 0:01:51.2]} 19. Re7 {[%clk
0:01:10.8]} 19... Rf7 {[%clk 0:01:50.4]} 20. Rae1 {[%clk 0:01:08.4]} 20... Bc4
{[%clk 0:01:47.4]} 21. a4 {[%clk 0:00:59.2]} 21... a6 {[%clk 0:01:45.1]} 22.
Rxf7 {[%clk 0:00:45.2]} 22... Qxf7 {[%clk 0:01:43.8]} 23. Qg5 {[%clk 0:00:43.5]}
23... h6 {[%clk 0:01:43.3]} 24. Qe7 {[%clk 0:00:40.6]} 24... Rf8 {[%clk
0:01:41]} 25. Qxf7+ {[%clk 0:00:32.1]} 25... Kxf7 {[%clk 0:01:40.3]} 26. f4
{[%clk 0:00:30.3]} 26... Rb8 {[%clk 0:01:39]} 27. c3 {[%clk 0:00:28.7]} 27... a5
{[%clk 0:01:38.3]} 28. b5 {[%clk 0:00:24.1]} 28... Bb3 {[%clk 0:01:35.8]} 29.
Ra1 {[%clk 0:00:24]} 29... Re8 {[%clk 0:01:35]} 30. Kf2 {[%clk 0:00:23.2]} 30...
Re4 {[%clk 0:01:33.7]} 31. g3 {[%clk 0:00:21.9]} 31... g5 {[%clk 0:01:30.8]} 32.
fxg5 {[%clk 0:00:20.1]} 32... hxg5 {[%clk 0:01:30.5]} 33. b6 {[%clk 0:00:19.6]}
33... cxb6 {[%clk 0:01:28.3]} 34. Bxb6 {[%clk 0:00:19.6]} 34... Bxa4 {[%clk
0:01:27.8]} 35. Bxa5 {[%clk 0:00:19.2]} 35... Bb5 {[%clk 0:01:27.6]} 36. Re1
{[%clk 0:00:13.8]} 36... Ra4 {[%clk 0:01:26.6]} 37. Bb6 {[%clk 0:00:13.9]} 37...
Ra2+ {[%clk 0:01:25.5]} 38. Kg1 {[%clk 0:00:13.9]} 38... Bd3 {[%clk 0:01:22.8]}
39. Bd4 {[%clk 0:00:12.4]} 39... Be4 {[%clk 0:01:22.1]} 40. Rf1+ {[%clk
0:00:12.6]} 40... Ke6 {[%clk 0:01:19]} 41. Rf2 {[%clk 0:00:13]} 41... Ra8 {[%clk
0:01:17]} 42. Rf6+ {[%clk 0:00:12.1]} 42... Kd7 {[%clk 0:01:16.6]} 43. h4 {[%clk
0:00:12.4]} 43... Ra1+ {[%clk 0:01:11.1]} 44. Kf2 {[%clk 0:00:12.3]} 44... Ra2+
{[%clk 0:01:09]} 45. Kf1 {[%clk 0:00:12.4]} 45... gxh4 {[%clk 0:01:07.5]} 46.
gxh4 {[%clk 0:00:12.5]} 46... Rh2 {[%clk 0:01:06.5]} 47. Rh6 {[%clk 0:00:12.6]}
47... Kc6 {[%clk 0:01:05.5]} 48. Be5 {[%clk 0:00:09.2]} 48... Rh3 {[%clk
0:01:04.7]} 49. Rxd6+ {[%clk 0:00:08.3]} 49... Kc5 {[%clk 0:01:03.8]} 50. Rh6
{[%clk 0:00:08.8]} 50... Kc4 {[%clk 0:01:03.6]} 51. Kf2 {[%clk 0:00:08.8]} 51...
Kd3 {[%clk 0:01:01.9]} 52. h5 {[%clk 0:00:09.1]} 52... Rf3+ {[%clk 0:01:00.9]}
53. Kg1 {[%clk 0:00:09.6]} 53... Ke2 {[%clk 0:01:00.5]} 54. Rh8 {[%clk
0:00:09.5]} 54... Rh3 {[%clk 0:01:00.1]} 55. Bh2 {[%clk 0:00:08.8]} 55... Rxc3
{[%clk 0:00:59.6]} 56. Be5 {[%clk 0:00:06.8]} 56... Rh3 {[%clk 0:00:58.6]} 57.
Bh2 {[%clk 0:00:06.7]} 57... d4 {[%clk 0:00:58.5]} 58. Re8 {[%clk 0:00:06.3]}
58... Ke3 {[%clk 0:00:57.7]} 59. Re5 {[%clk 0:00:02.6]} 59... d3 {[%clk
0:00:56.8]} 0-1

[Event "Early-Titled-Tuesday-Blitz-June-18-2024"]
[Site "Chess.com"]
[Date "2024.06.18"]
[Round "8"]
[White "BardArtem"]
[Black "ManMish2"]
[Result "1-0"]
[WhiteElo "2844"]
[BlackElo "2656"]
[TimeControl "180+1"]
[EndTime "9:30:45 PDT"]
[Termination "BardArtem won on time"]

1. e4 {[%clk 0:03:00.6]} 1... e5 {[%clk 0:03:00.1]} 2. Nf3 {[%clk 0:03:00.4]}
2... Nc6 {[%clk 0:03:00.4]} 3. Nc3 {[%clk 0:03:01.2]} 3... Nf6 {[%clk
0:03:00.4]} 4. a4 {[%clk 0:03:01.9]} 4... d5 {[%clk 0:02:59.9]} 5. Bb5 {[%clk
0:03:01.1]} 5... d4 {[%clk 0:02:58.4]} 6. Ne2 {[%clk 0:03:00.1]} 6... Bd6 {[%clk
0:02:56.6]} 7. Bxc6+ {[%clk 0:03:00.5]} 7... bxc6 {[%clk 0:02:54.3]} 8. d3
{[%clk 0:03:01.4]} 8... c5 {[%clk 0:02:44.5]} 9. b3 {[%clk 0:03:00.8]} 9... O-O
{[%clk 0:02:43.9]} 10. O-O {[%clk 0:03:01]} 10... Ne8 {[%clk 0:02:37.2]} 11. Ng3
{[%clk 0:03:00.1]} 11... g6 {[%clk 0:02:37.1]} 12. Bh6 {[%clk 0:02:46.6]} 12...
Ng7 {[%clk 0:02:36.7]} 13. Nd2 {[%clk 0:02:47.3]} 13... f6 {[%clk 0:02:29]} 14.
Nc4 {[%clk 0:02:46.2]} 14... Be6 {[%clk 0:02:23.7]} 15. f4 {[%clk 0:02:44.9]}
15... exf4 {[%clk 0:01:51.7]} 16. Bxf4 {[%clk 0:02:43.9]} 16... Bxf4 {[%clk
0:01:44.7]} 17. Rxf4 {[%clk 0:02:44.8]} 17... Qe7 {[%clk 0:01:43.4]} 18. Qd2
{[%clk 0:02:39.1]} 18... Bxc4 {[%clk 0:01:30.2]} 19. bxc4 {[%clk 0:02:38.8]}
19... Ne6 {[%clk 0:01:29.6]} 20. Rf2 {[%clk 0:02:37.6]} 20... Rab8 {[%clk
0:01:20.6]} 21. Raf1 {[%clk 0:02:36.9]} 21... Kg7 {[%clk 0:01:08.1]} 22. h4
{[%clk 0:02:30.5]} 22... h5 {[%clk 0:01:03.5]} 23. Rf5 {[%clk 0:01:38.4]} 23...
Qd7 {[%clk 0:00:46.5]} 24. Rd5 {[%clk 0:01:16.8]} 24... Qxa4 {[%clk 0:00:34.9]}
25. Ne2 {[%clk 0:01:01.2]} 25... Rf7 {[%clk 0:00:21.5]} 26. Nf4 {[%clk
0:00:59.2]} 26... Nxf4 {[%clk 0:00:15.8]} 27. Qxf4 {[%clk 0:01:00.1]} 27... Qc6
{[%clk 0:00:14.6]} 28. e5 {[%clk 0:00:43.4]} 28... Rbf8 {[%clk 0:00:11.3]} 29.
Ra1 {[%clk 0:00:33.2]} 29... fxe5 {[%clk 0:00:07.8]} 30. Qxe5+ {[%clk
0:00:34.1]} 30... Kh7 {[%clk 0:00:07.6]} 31. Rxc5 {[%clk 0:00:29.8]} 31... Qd7
{[%clk 0:00:06]} 32. Rd5 {[%clk 0:00:17.4]} 32... Qc6 {[%clk 0:00:03.5]} 33.
Qxd4 {[%clk 0:00:16.4]} 33... Rf4 {[%clk 0:00:01.9]} 34. Rd7+ {[%clk 0:00:15.1]}
34... R8f7 {[%clk 0:00:02.1]} 35. Rxf7+ {[%clk 0:00:13.9]} 35... Rxf7 {[%clk
0:00:03]} 36. Qxa7 {[%clk 0:00:14.3]} 36... Qd6 {[%clk 0:00:02.8]} 37. Rf1
{[%clk 0:00:10.4]} 37... Rxf1+ {[%clk 0:00:02.1]} 38. Kxf1 {[%clk 0:00:11.3]}
38... Qf4+ {[%clk 0:00:02.5]} 39. Kg1 {[%clk 0:00:07.5]} 1-0

[Event "Early-Titled-Tuesday-Blitz-June-18-2024"]
[Site "Chess.com"]
[Date "2024.06.18"]
[Round "8"]
[White "pouya21"]
[Black "Korona_91"]
[Result "1-0"]
[WhiteElo "2856"]
[BlackElo "2676"]
[TimeControl "180+1"]
[EndTime "9:30:47 PDT"]
[Termination "pouya21 won by resignation"]

1. e4 {[%clk 0:03:00.9]} 1... e5 {[%clk 0:02:58.1]} 2. Nf3 {[%clk 0:02:58.6]}
2... Nc6 {[%clk 0:02:57.3]} 3. Bb5 {[%clk 0:02:59]} 3... a6 {[%clk 0:02:54.7]}
4. Ba4 {[%clk 0:02:58.7]} 4... Nf6 {[%clk 0:02:54.6]} 5. O-O {[%clk 0:02:59.1]}
5... Be7 {[%clk 0:02:55]} 6. Re1 {[%clk 0:02:56.1]} 6... b5 {[%clk 0:02:54.4]}
7. Bb3 {[%clk 0:02:56.5]} 7... O-O {[%clk 0:02:54.8]} 8. a4 {[%clk 0:02:54.8]}
8... b4 {[%clk 0:02:53.5]} 9. d4 {[%clk 0:02:55]} 9... d6 {[%clk 0:02:52.5]} 10.
dxe5 {[%clk 0:02:53.7]} 10... Nxe5 {[%clk 0:02:52.9]} 11. Bf4 {[%clk 0:02:47]}
11... Ng6 {[%clk 0:02:51.6]} 12. Bg3 {[%clk 0:02:47.2]} 12... Bb7 {[%clk
0:02:50.5]} 13. Nbd2 {[%clk 0:02:46.9]} 13... Nd7 {[%clk 0:02:49.5]} 14. Nc4
{[%clk 0:02:42]} 14... Nc5 {[%clk 0:02:48.7]} 15. e5 {[%clk 0:02:40.1]} 15...
Nxb3 {[%clk 0:02:47.9]} 16. cxb3 {[%clk 0:02:38.7]} 16... f5 {[%clk 0:02:48.4]}
17. exd6 {[%clk 0:02:36.3]} 17... cxd6 {[%clk 0:02:49.3]} 18. Bxd6 {[%clk
0:02:36.3]} 18... Bxd6 {[%clk 0:02:47.6]} 19. Qxd6 {[%clk 0:02:36.3]} 19... Qxd6
{[%clk 0:02:45.7]} 20. Nxd6 {[%clk 0:02:37.2]} 20... Bxf3 {[%clk 0:02:46.1]} 21.
gxf3 {[%clk 0:02:37.7]} 21... Rad8 {[%clk 0:02:46.6]} 22. Rad1 {[%clk
0:02:25.8]} 22... Nh4 {[%clk 0:02:42.1]} 23. Re6 {[%clk 0:01:44.8]} 23... Nxf3+
{[%clk 0:02:38.4]} 24. Kg2 {[%clk 0:01:44.8]} 24... Ng5 {[%clk 0:02:38.6]} 25.
Ree1 {[%clk 0:01:44]} 25... f4 {[%clk 0:02:19.7]} 26. h4 {[%clk 0:01:35.3]}
26... Nf7 {[%clk 0:02:14.1]} 27. Nc4 {[%clk 0:01:26]} 27... g5 {[%clk
0:01:58.6]} 28. hxg5 {[%clk 0:01:11.3]} 28... Nxg5 {[%clk 0:01:59.5]} 29. Rxd8
{[%clk 0:01:11.3]} 29... Rxd8 {[%clk 0:01:53.9]} 30. Re5 {[%clk 0:01:11.8]}
30... h6 {[%clk 0:01:50.8]} 31. Ra5 {[%clk 0:01:10.1]} 31... f3+ {[%clk
0:01:30.8]} 32. Kg3 {[%clk 0:01:08.5]} 32... Rd3 {[%clk 0:01:29.6]} 33. Rxa6
{[%clk 0:00:48.8]} 33... Ne4+ {[%clk 0:01:28.1]} 34. Kf4 {[%clk 0:00:47.2]}
34... Nxf2 {[%clk 0:01:28.2]} 35. Rxh6 {[%clk 0:00:38.4]} 35... Nd1 {[%clk
0:01:21.9]} 36. Rh1 {[%clk 0:00:31.7]} 36... f2 {[%clk 0:01:12.7]} 37. a5 {[%clk
0:00:28.2]} 37... Rd7 {[%clk 0:00:50.9]} 38. Kf3 {[%clk 0:00:20.6]} 38... Kf8
{[%clk 0:00:27.1]} 39. Ke2 {[%clk 0:00:16.1]} 39... Kg7 {[%clk 0:00:19.1]} 40.
a6 {[%clk 0:00:15.2]} 40... Kg6 {[%clk 0:00:19.2]} 41. a7 {[%clk 0:00:14.7]}
41... Rxa7 {[%clk 0:00:19.7]} 42. Rxd1 {[%clk 0:00:14.8]} 42... Rf7 {[%clk
0:00:20.2]} 43. Rf1 {[%clk 0:00:14.5]} 43... Re7+ {[%clk 0:00:19.1]} 44. Kxf2
{[%clk 0:00:14.2]} 44... Kf5 {[%clk 0:00:19.7]} 45. Re1 {[%clk 0:00:13.5]} 45...
Rh7 {[%clk 0:00:19.9]} 46. Ke3 {[%clk 0:00:12.7]} 46... Rh3+ {[%clk 0:00:19.3]}
47. Kd4 {[%clk 0:00:13.3]} 47... Rxb3 {[%clk 0:00:19.2]} 48. Re3 {[%clk
0:00:13.9]} 48... Rxe3 {[%clk 0:00:18.7]} 49. Nxe3+ {[%clk 0:00:14.8]} 49... Ke6
{[%clk 0:00:19.2]} 50. Kc4 {[%clk 0:00:15.1]} 1-0